[Event "Late-Titled-Tuesday-Blitz-April-30-2024"]
[Site "Chess.com"]
[Date "2024.04.30"]
[Round "7"]
[White "Attacker_2006"]
[Black "KogotBobra17"]
[Result "0-1"]
[WhiteElo "2514"]
[BlackElo "2776"]
[TimeControl "180+1"]
[EndTime "15:17:20 PDT"]
[Termination "KogotBobra17 won on time"]

1. e4 {[%clk 0:03:00.9]} 1... c5 {[%clk 0:03:00.2]} 2. Nc3 {[%clk 0:03:00.5]}
2... Nc6 {[%clk 0:03:00.2]} 3. f4 {[%clk 0:03:00.2]} 3... g6 {[%clk 0:02:59.4]}
4. Nf3 {[%clk 0:03:00.8]} 4... Bg7 {[%clk 0:03:00]} 5. Bc4 {[%clk 0:03:01.4]}
5... e6 {[%clk 0:03:00.2]} 6. f5 {[%clk 0:03:02]} 6... Nge7 {[%clk 0:02:56.5]}
7. fxe6 {[%clk 0:03:01.4]} 7... fxe6 {[%clk 0:02:56.8]} 8. d3 {[%clk 0:03:02.1]}
8... O-O {[%clk 0:02:57.1]} 9. O-O {[%clk 0:03:02.7]} 9... d5 {[%clk 0:02:49.4]}
10. exd5 {[%clk 0:02:59.6]} 10... exd5 {[%clk 0:02:50.3]} 11. Bb3 {[%clk
0:03:00.2]} 11... Kh8 {[%clk 0:02:49.3]} 12. Bg5 {[%clk 0:02:59.7]} 12... h6
{[%clk 0:02:39.6]} 13. Bh4 {[%clk 0:02:53.7]} 13... g5 {[%clk 0:02:39.9]} 14.
Bf2 {[%clk 0:02:29.6]} 14... b6 {[%clk 0:02:37.4]} 15. Nxg5 {[%clk 0:02:24.6]}
15... hxg5 {[%clk 0:02:34.4]} 16. Qh5+ {[%clk 0:02:24.9]} 16... Kg8 {[%clk
0:02:34.8]} 17. Rae1 {[%clk 0:02:19]} 17... Rf5 {[%clk 0:01:57.7]} 18. Nxd5
{[%clk 0:02:08.7]} 18... Rxd5 {[%clk 0:01:56.4]} 19. Bxd5+ {[%clk 0:01:19.2]}
19... Qxd5 {[%clk 0:01:55.4]} 20. Qe8+ {[%clk 0:01:13.9]} 20... Kh7 {[%clk
0:01:55.4]} 21. Qh5+ {[%clk 0:01:13.9]} 21... Kg8 {[%clk 0:01:55.6]} 22. Qe8+
{[%clk 0:01:03.4]} 22... Kh7 {[%clk 0:01:35.5]} 23. Qh5+ {[%clk 0:00:51.8]}
23... Bh6 {[%clk 0:01:35.7]} 24. Be3 {[%clk 0:00:46.2]} 24... Bf5 {[%clk
0:00:12.2]} 25. Bxg5 {[%clk 0:00:31]} 25... Qd4+ {[%clk 0:00:12.5]} 26. Kh1
{[%clk 0:00:14.7]} 26... Qg7 {[%clk 0:00:12.8]} 0-1

[Event "Late-Titled-Tuesday-Blitz-April-30-2024"]
[Site "Chess.com"]
[Date "2024.04.30"]
[Round "7"]
[White "georgpapi"]
[Black "WPWPWP-2015"]
[Result "1-0"]
[WhiteElo "2389"]
[BlackElo "2468"]
[TimeControl "180+1"]
[EndTime "15:17:20 PDT"]
[Termination "georgpapi won by checkmate"]

1. d4 {[%clk 0:03:00.9]} 1... d5 {[%clk 0:02:58]} 2. c4 {[%clk 0:03:01.8]} 2...
e6 {[%clk 0:02:58.2]} 3. Nf3 {[%clk 0:03:02.7]} 3... Nf6 {[%clk 0:02:58.1]} 4.
g3 {[%clk 0:03:03.6]} 4... Bb4+ {[%clk 0:02:57.2]} 5. Bd2 {[%clk 0:03:03.8]}
5... Be7 {[%clk 0:02:58.1]} 6. Bg2 {[%clk 0:03:04.3]} 6... O-O {[%clk
0:02:58.3]} 7. O-O {[%clk 0:03:05.2]} 7... dxc4 {[%clk 0:02:58.1]} 8. Qc2 {[%clk
0:02:59.5]} 8... a6 {[%clk 0:02:57.9]} 9. Qxc4 {[%clk 0:02:57.6]} 9... b5 {[%clk
0:02:57.7]} 10. Qc2 {[%clk 0:02:57.7]} 10... Bb7 {[%clk 0:02:58.5]} 11. Bf4
{[%clk 0:02:57]} 11... Nc6 {[%clk 0:02:55.5]} 12. Rd1 {[%clk 0:02:45.4]} 12...
Nb4 {[%clk 0:02:53.7]} 13. Qc1 {[%clk 0:02:43.4]} 13... Nbd5 {[%clk 0:02:53.4]}
14. Ne5 {[%clk 0:02:37.1]} 14... Rc8 {[%clk 0:02:51.6]} 15. Nc3 {[%clk
0:02:33.4]} 15... Nxc3 {[%clk 0:02:47.2]} 16. bxc3 {[%clk 0:02:28]} 16... Bxg2
{[%clk 0:02:45.5]} 17. Kxg2 {[%clk 0:02:28.9]} 17... Qd5+ {[%clk 0:02:28]} 18.
Kg1 {[%clk 0:02:25.3]} 18... c5 {[%clk 0:02:27.7]} 19. Qa3 {[%clk 0:01:40.2]}
19... Qb7 {[%clk 0:01:54.7]} 20. Qb3 {[%clk 0:01:17.7]} 20... Nd5 {[%clk
0:01:21.2]} 21. Bd2 {[%clk 0:01:15.4]} 21... f6 {[%clk 0:01:16.1]} 22. Nf3
{[%clk 0:01:13.8]} 22... c4 {[%clk 0:01:15.5]} 23. Qc2 {[%clk 0:01:13]} 23... f5
{[%clk 0:01:14.6]} 24. a4 {[%clk 0:01:09.2]} 24... Nf6 {[%clk 0:01:13.5]} 25.
axb5 {[%clk 0:01:08.7]} 25... axb5 {[%clk 0:01:13.6]} 26. Ne5 {[%clk 0:01:09.1]}
26... Bd6 {[%clk 0:01:06.1]} 27. Bf4 {[%clk 0:00:52]} 27... Nd5 {[%clk
0:01:03.7]} 28. Rdb1 {[%clk 0:00:37.6]} 28... Bxe5 {[%clk 0:00:52.4]} 29. Bxe5
{[%clk 0:00:37.1]} 29... f4 {[%clk 0:00:52.6]} 30. Ra5 {[%clk 0:00:27.6]} 30...
b4 {[%clk 0:00:48.1]} 31. cxb4 {[%clk 0:00:26.3]} 31... c3 {[%clk 0:00:45.6]}
32. Rc5 {[%clk 0:00:25.7]} 32... Nxb4 {[%clk 0:00:31.5]} 33. Qxc3 {[%clk
0:00:20.7]} 33... Nd5 {[%clk 0:00:24.1]} 34. Rxb7 {[%clk 0:00:20.1]} 34... Nxc3
{[%clk 0:00:22.4]} 35. Rxg7+ {[%clk 0:00:20.3]} 35... Kh8 {[%clk 0:00:22.4]} 36.
Rgc7+ {[%clk 0:00:20]} 36... Kg8 {[%clk 0:00:22.3]} 37. Rg7+ {[%clk 0:00:18.8]}
37... Kh8 {[%clk 0:00:21.9]} 38. Rg5+ {[%clk 0:00:18.6]} 38... Rf6 {[%clk
0:00:21]} 39. Bxf6# {[%clk 0:00:18.9]} 1-0

[Event "Late-Titled-Tuesday-Blitz-April-30-2024"]
[Site "Chess.com"]
[Date "2024.04.30"]
[Round "7"]
[White "traack"]
[Black "MiguelBestard1981"]
[Result "0-1"]
[WhiteElo "2415"]
[BlackElo "2164"]
[TimeControl "180+1"]
[EndTime "15:17:21 PDT"]
[Termination "MiguelBestard1981 won by resignation"]

1. e4 {[%clk 0:02:57.8]} 1... e5 {[%clk 0:02:59.4]} 2. Nf3 {[%clk 0:02:54.7]}
2... Nf6 {[%clk 0:02:59.2]} 3. Nc3 {[%clk 0:02:54]} 3... Nc6 {[%clk 0:02:58.4]}
4. g3 {[%clk 0:02:54.2]} 4... h6 {[%clk 0:02:55.4]} 5. Bg2 {[%clk 0:02:54]} 5...
a6 {[%clk 0:02:55.2]} 6. O-O {[%clk 0:02:53]} 6... Bc5 {[%clk 0:02:54.7]} 7. d3
{[%clk 0:02:50.5]} 7... d6 {[%clk 0:02:55]} 8. h3 {[%clk 0:02:45]} 8... Be6
{[%clk 0:02:54.1]} 9. Kh2 {[%clk 0:02:45.5]} 9... Qd7 {[%clk 0:02:54.4]} 10. Nd2
{[%clk 0:02:43.4]} 10... g5 {[%clk 0:02:53.5]} 11. Nb3 {[%clk 0:02:35.2]} 11...
Ba7 {[%clk 0:02:53.3]} 12. f4 {[%clk 0:02:34.9]} 12... exf4 {[%clk 0:02:45.4]}
13. gxf4 {[%clk 0:02:34.6]} 13... gxf4 {[%clk 0:02:39.6]} 14. Bxf4 {[%clk
0:02:33.9]} 14... O-O-O {[%clk 0:02:31.1]} 15. Bg3 {[%clk 0:02:32.7]} 15... Nh7
{[%clk 0:02:25.7]} 16. Nd5 {[%clk 0:02:25.9]} 16... Rdg8 {[%clk 0:02:21.2]} 17.
Qh5 {[%clk 0:02:17.8]} 17... Rg5 {[%clk 0:02:17.2]} 18. Qxh6 {[%clk 0:02:12.6]}
18... Rhg8 {[%clk 0:02:10.7]} 19. Rf3 {[%clk 0:02:00.8]} 19... Ne5 {[%clk
0:02:05.6]} 20. Qxh7 {[%clk 0:01:45.9]} 20... Nxf3+ {[%clk 0:02:01.7]} 21. Bxf3
{[%clk 0:01:46.8]} 21... Rxg3 {[%clk 0:02:00.4]} 22. Nf6 {[%clk 0:01:47.7]}
22... Rxf3 {[%clk 0:01:09.3]} 23. Qxg8+ {[%clk 0:00:49.1]} 23... Qd8 {[%clk
0:01:08.6]} 24. Qxd8+ {[%clk 0:00:49.7]} 24... Kxd8 {[%clk 0:01:08.5]} 25. Ng4
{[%clk 0:00:50.6]} 25... Bxg4 {[%clk 0:01:05.5]} 26. hxg4 {[%clk 0:00:51.5]}
26... Rf2+ {[%clk 0:01:05.9]} 27. Kg3 {[%clk 0:00:52.1]} 27... Rxc2 {[%clk
0:01:06.2]} 28. Rf1 {[%clk 0:00:52.2]} 28... Ke8 {[%clk 0:01:03.2]} 29. g5
{[%clk 0:00:33.7]} 29... Rxb2 {[%clk 0:01:02.4]} 30. Na5 {[%clk 0:00:29.6]}
30... Rb5 {[%clk 0:00:48.1]} 31. Nc4 {[%clk 0:00:29.1]} 31... Rxg5+ {[%clk
0:00:47.7]} 32. Kf4 {[%clk 0:00:29.4]} 32... Rg2 {[%clk 0:00:46.1]} 33. Rh1
{[%clk 0:00:27]} 33... Rxa2 {[%clk 0:00:44.7]} 34. Rh8+ {[%clk 0:00:23.1]} 34...
Kd7 {[%clk 0:00:37.5]} 35. Ra8 {[%clk 0:00:24]} 35... Bd4 {[%clk 0:00:34.5]} 36.
Rf8 {[%clk 0:00:22.1]} 36... f6 {[%clk 0:00:33.8]} 37. Rf7+ {[%clk 0:00:20.7]}
37... Kc6 {[%clk 0:00:34.1]} 38. Kf5 {[%clk 0:00:18.6]} 38... b5 {[%clk
0:00:33.8]} 39. Ke6 {[%clk 0:00:12]} 39... bxc4 {[%clk 0:00:33.2]} 40. dxc4
{[%clk 0:00:12.9]} 0-1

[Event "Late-Titled-Tuesday-Blitz-April-30-2024"]
[Site "Chess.com"]
[Date "2024.04.30"]
[Round "7"]
[White "QuintilianoR"]
[Black "PenguinPacks"]
[Result "0-1"]
[WhiteElo "2705"]
[BlackElo "2482"]
[TimeControl "180+1"]
[EndTime "15:17:22 PDT"]
[Termination "PenguinPacks won on time"]

1. e4 {[%clk 0:03:00]} 1... c5 {[%clk 0:03:00.2]} 2. Nf3 {[%clk 0:02:59.9]} 2...
d6 {[%clk 0:02:59.8]} 3. d4 {[%clk 0:02:58.1]} 3... cxd4 {[%clk 0:03:00.7]} 4.
Qxd4 {[%clk 0:02:58.3]} 4... Nc6 {[%clk 0:03:00.5]} 5. Qe3 {[%clk 0:02:57.1]}
5... Nf6 {[%clk 0:02:59.5]} 6. Be2 {[%clk 0:02:57.1]} 6... g6 {[%clk 0:02:59.2]}
7. O-O {[%clk 0:02:57]} 7... Bg7 {[%clk 0:02:58.3]} 8. c4 {[%clk 0:02:57]} 8...
O-O {[%clk 0:02:58.4]} 9. Nc3 {[%clk 0:02:52.9]} 9... h6 {[%clk 0:02:51.4]} 10.
h3 {[%clk 0:02:50]} 10... Be6 {[%clk 0:02:38.8]} 11. Rb1 {[%clk 0:02:39.3]}
11... Rc8 {[%clk 0:02:30.1]} 12. b3 {[%clk 0:02:33.2]} 12... Nd7 {[%clk
0:02:27.9]} 13. Bb2 {[%clk 0:02:32.4]} 13... Qa5 {[%clk 0:02:23.8]} 14. Nd5
{[%clk 0:02:24]} 14... Bxd5 {[%clk 0:02:21.1]} 15. exd5 {[%clk 0:02:23.2]} 15...
Nce5 {[%clk 0:02:12.7]} 16. Nxe5 {[%clk 0:02:22.4]} 16... dxe5 {[%clk
0:01:57.9]} 17. a3 {[%clk 0:02:17.3]} 17... Rfd8 {[%clk 0:01:41.7]} 18. b4
{[%clk 0:02:16.6]} 18... Qa4 {[%clk 0:01:38.4]} 19. Bd1 {[%clk 0:02:14.1]} 19...
Qa6 {[%clk 0:01:38.7]} 20. Bb3 {[%clk 0:02:14.9]} 20... Nb6 {[%clk 0:01:31.1]}
21. Bxe5 {[%clk 0:02:08.5]} 21... Nxc4 {[%clk 0:01:27.5]} 22. Bxc4 {[%clk
0:02:08.5]} 22... Qxc4 {[%clk 0:01:26.6]} 23. Bxg7 {[%clk 0:02:08.6]} 23... Kxg7
{[%clk 0:01:27.5]} 24. Qxe7 {[%clk 0:02:09]} 24... Qxd5 {[%clk 0:01:23.7]} 25.
Qe3 {[%clk 0:02:07.7]} 25... a6 {[%clk 0:01:19.9]} 26. Rfe1 {[%clk 0:02:05.8]}
26... Rc2 {[%clk 0:01:13.7]} 27. Qf4 {[%clk 0:01:59.2]} 27... Rd6 {[%clk
0:01:10.4]} 28. Re5 {[%clk 0:01:56.9]} 28... Qd2 {[%clk 0:00:56.7]} 29. Qxd2
{[%clk 0:01:51.9]} 29... Rdxd2 {[%clk 0:00:57.6]} 30. Rf1 {[%clk 0:01:50.6]}
30... Kf6 {[%clk 0:00:58.1]} 31. Re3 {[%clk 0:01:48.6]} 31... Ra2 {[%clk
0:00:43]} 32. Rf3+ {[%clk 0:00:04.3]} 32... Kg7 {[%clk 0:00:43.2]} 33. Re1
{[%clk 0:00:05.2]} 33... Rd7 {[%clk 0:00:33.8]} 34. Re4 {[%clk 0:00:02]} 34...
g5 {[%clk 0:00:25.9]} 0-1

[Event "Late-Titled-Tuesday-Blitz-April-30-2024"]
[Site "Chess.com"]
[Date "2024.04.30"]
[Round "7"]
[White "sillypiggy2024"]
[Black "hammahamma"]
[Result "0-1"]
[WhiteElo "1733"]
[BlackElo "2248"]
[TimeControl "180+1"]
[EndTime "15:17:26 PDT"]
[Termination "hammahamma won on time"]

1. d4 {[%clk 0:03:00.9]} 1... d5 {[%clk 0:02:58.9]} 2. c4 {[%clk 0:03:00.1]}
2... dxc4 {[%clk 0:02:58.8]} 3. Nf3 {[%clk 0:02:57.4]} 3... Nf6 {[%clk
0:02:51.3]} 4. e3 {[%clk 0:02:56.2]} 4... e6 {[%clk 0:02:51.8]} 5. Bxc4 {[%clk
0:02:55.5]} 5... a6 {[%clk 0:02:52.5]} 6. Nc3 {[%clk 0:02:54.2]} 6... c5 {[%clk
0:02:52.4]} 7. b3 {[%clk 0:02:48.1]} 7... Nc6 {[%clk 0:02:49]} 8. dxc5 {[%clk
0:02:41.4]} 8... Qxd1+ {[%clk 0:02:47.6]} 9. Nxd1 {[%clk 0:02:40]} 9... Bxc5
{[%clk 0:02:47.7]} 10. Bb2 {[%clk 0:02:39.5]} 10... b5 {[%clk 0:02:43.3]} 11.
Be2 {[%clk 0:02:32]} 11... Bb7 {[%clk 0:02:40.3]} 12. O-O {[%clk 0:02:30.1]}
12... O-O {[%clk 0:02:35.4]} 13. Nc3 {[%clk 0:02:24.8]} 13... Rfd8 {[%clk
0:02:28.3]} 14. Rfd1 {[%clk 0:02:19.4]} 14... Kf8 {[%clk 0:02:12.8]} 15. Rac1
{[%clk 0:02:14.4]} 15... Bb6 {[%clk 0:01:58.8]} 16. Nd2 {[%clk 0:01:52.4]} 16...
Ke7 {[%clk 0:01:52.2]} 17. Nde4 {[%clk 0:01:50]} 17... Nxe4 {[%clk 0:01:47.1]}
18. Nxe4 {[%clk 0:01:48.2]} 18... f6 {[%clk 0:01:45.8]} 19. h3 {[%clk
0:01:36.8]} 19... Rac8 {[%clk 0:01:45]} 20. Rxd8 {[%clk 0:01:30.7]} 20... Nxd8
{[%clk 0:01:30.7]} 21. Ba3+ {[%clk 0:01:23.9]} 21... Kd7 {[%clk 0:01:17.7]} 22.
Rd1+ {[%clk 0:01:12.7]} 22... Bd5 {[%clk 0:01:17.3]} 23. Bf3 {[%clk 0:00:53.7]}
23... Rc2 {[%clk 0:01:13.9]} 24. Bf8 {[%clk 0:00:37.3]} 24... f5 {[%clk
0:00:46.4]} 25. Ng3 {[%clk 0:00:31.2]} 25... g6 {[%clk 0:00:41.2]} 26. Bxd5
{[%clk 0:00:30.1]} 26... exd5 {[%clk 0:00:41]} 27. Rxd5+ {[%clk 0:00:29]} 27...
Ke8 {[%clk 0:00:41.2]} 28. Bb4 {[%clk 0:00:23.1]} 28... Rxa2 {[%clk 0:00:35.3]}
29. Rd6 {[%clk 0:00:20.5]} 29... Bc7 {[%clk 0:00:27.6]} 30. Rf6 {[%clk
0:00:16.8]} 30... Bxg3 {[%clk 0:00:22.9]} 31. fxg3 {[%clk 0:00:14.4]} 31... a5
{[%clk 0:00:22.4]} 32. Bc5 {[%clk 0:00:10.8]} 32... a4 {[%clk 0:00:20.6]} 33.
bxa4 {[%clk 0:00:08.4]} 33... bxa4 {[%clk 0:00:21.5]} 34. Rf8+ {[%clk
0:00:04.6]} 34... Kd7 {[%clk 0:00:21.7]} 35. Rh8 {[%clk 0:00:03.7]} 35... h5
{[%clk 0:00:15.5]} 0-1

[Event "Late-Titled-Tuesday-Blitz-April-30-2024"]
[Site "Chess.com"]
[Date "2024.04.30"]
[Round "7"]
[White "SpeedofLight0"]
[Black "mishanick"]
[Result "0-1"]
[WhiteElo "3030"]
[BlackElo "3118"]
[TimeControl "180+1"]
[EndTime "15:17:29 PDT"]
[Termination "mishanick won by resignation"]

1. d4 {[%clk 0:02:51.7]} 1... Nf6 {[%clk 0:02:59.9]} 2. Nc3 {[%clk 0:02:51.9]}
2... d5 {[%clk 0:03:00]} 3. Bf4 {[%clk 0:02:52.5]} 3... a6 {[%clk 0:02:58.3]} 4.
e3 {[%clk 0:02:52.4]} 4... h6 {[%clk 0:02:58.2]} 5. Nf3 {[%clk 0:02:51.3]} 5...
e6 {[%clk 0:02:58.1]} 6. Bd3 {[%clk 0:02:51]} 6... c5 {[%clk 0:02:58.1]} 7. O-O
{[%clk 0:02:49.7]} 7... Nc6 {[%clk 0:02:58.1]} 8. dxc5 {[%clk 0:02:48.8]} 8...
Bxc5 {[%clk 0:02:58.5]} 9. e4 {[%clk 0:02:48.9]} 9... O-O {[%clk 0:02:58.6]} 10.
h3 {[%clk 0:02:47.9]} 10... Re8 {[%clk 0:02:57.8]} 11. Re1 {[%clk 0:02:41.7]}
11... d4 {[%clk 0:02:57.6]} 12. Ne2 {[%clk 0:02:35.5]} 12... e5 {[%clk
0:02:57.9]} 13. Bd2 {[%clk 0:02:34.8]} 13... Be6 {[%clk 0:02:46.4]} 14. Ng3
{[%clk 0:02:34.3]} 14... Nd7 {[%clk 0:02:45.8]} 15. Nf5 {[%clk 0:02:25.8]} 15...
Bf8 {[%clk 0:02:45.7]} 16. Nh2 {[%clk 0:02:15.7]} 16... Nc5 {[%clk 0:02:44]} 17.
Qf3 {[%clk 0:02:14.4]} 17... Kh7 {[%clk 0:01:37.6]} 18. Ng4 {[%clk 0:02:00.7]}
18... Nxd3 {[%clk 0:01:37.3]} 19. cxd3 {[%clk 0:02:00.6]} 19... h5 {[%clk
0:01:31.6]} 20. Nh2 {[%clk 0:01:38.3]} 20... g6 {[%clk 0:01:31.9]} 21. Ng3
{[%clk 0:01:37.1]} 21... Bg7 {[%clk 0:01:29.3]} 22. Qe2 {[%clk 0:01:30.3]} 22...
Rc8 {[%clk 0:01:29.5]} 23. Nf3 {[%clk 0:01:29]} 23... Bf6 {[%clk 0:01:28.8]} 24.
Rec1 {[%clk 0:01:19.9]} 24... Kg7 {[%clk 0:01:22]} 25. Qd1 {[%clk 0:01:17.1]}
25... Qe7 {[%clk 0:01:21.3]} 26. a3 {[%clk 0:01:05.8]} 26... Rc7 {[%clk
0:01:18.9]} 27. Rc2 {[%clk 0:01:05.5]} 27... Bb3 {[%clk 0:01:16.7]} 28. Bb4
{[%clk 0:00:56.1]} 28... Bxc2 {[%clk 0:01:05.1]} 29. Bxe7 {[%clk 0:00:55.9]}
29... Bxd1 {[%clk 0:01:05.5]} 30. Bxf6+ {[%clk 0:00:55]} 30... Kxf6 {[%clk
0:01:06.1]} 31. Rxd1 {[%clk 0:00:55.7]} 31... Rec8 {[%clk 0:01:05.9]} 32. Ne2
{[%clk 0:00:55]} 32... Nd8 {[%clk 0:01:05]} 33. Ne1 {[%clk 0:00:55.3]} 33... Ne6
{[%clk 0:01:05]} 34. g3 {[%clk 0:00:54.1]} 34... g5 {[%clk 0:01:05.1]} 35. Kg2
{[%clk 0:00:49]} 35... Ke7 {[%clk 0:01:05.2]} 36. Rb1 {[%clk 0:00:46]} 36... f6
{[%clk 0:01:04.9]} 37. Kf3 {[%clk 0:00:42]} 37... b5 {[%clk 0:01:03.3]} 38. Kg2
{[%clk 0:00:38.5]} 38... Kf7 {[%clk 0:01:03.6]} 39. Kf1 {[%clk 0:00:38.3]} 39...
g4 {[%clk 0:01:03.2]} 40. hxg4 {[%clk 0:00:34]} 40... hxg4 {[%clk 0:01:04.1]}
41. Ng2 {[%clk 0:00:34.7]} 41... Ng5 {[%clk 0:01:02.2]} 42. Nh4 {[%clk
0:00:34.8]} 42... Rc2 {[%clk 0:01:00.4]} 43. b4 {[%clk 0:00:28.6]} 43... Nf3
{[%clk 0:00:58.5]} 44. Ra1 {[%clk 0:00:24.9]} 44... Rd2 {[%clk 0:00:54.8]} 45.
Nxf3 {[%clk 0:00:11.5]} 45... gxf3 {[%clk 0:00:55.7]} 46. Ng1 {[%clk 0:00:11]}
46... Rcc2 {[%clk 0:00:56.3]} 47. Nh3 {[%clk 0:00:10]} 47... Rxd3 {[%clk
0:00:55.8]} 48. a4 {[%clk 0:00:09.5]} 48... bxa4 {[%clk 0:00:55.3]} 49. b5
{[%clk 0:00:08.8]} 49... axb5 {[%clk 0:00:55.7]} 50. Kg1 {[%clk 0:00:09.2]}
50... a3 {[%clk 0:00:55.9]} 51. Kh2 {[%clk 0:00:09.4]} 51... a2 {[%clk 0:00:56]}
52. g4 {[%clk 0:00:09.5]} 52... Rb3 {[%clk 0:00:56.3]} 53. Rg1 {[%clk
0:00:08.6]} 53... Rb1 {[%clk 0:00:56.8]} 54. Rg3 {[%clk 0:00:09]} 54... a1=Q
{[%clk 0:00:56.9]} 55. Rxf3 {[%clk 0:00:09.6]} 55... Rh1+ {[%clk 0:00:57]} 56.
Kg3 {[%clk 0:00:10.1]} 56... Rxh3+ {[%clk 0:00:57.4]} 57. Kxh3 {[%clk 0:00:11]}
57... Qh1+ {[%clk 0:00:57.8]} 58. Kg3 {[%clk 0:00:11.6]} 58... Qxf3+ {[%clk
0:00:58.5]} 59. Kxf3 {[%clk 0:00:12.5]} 59... b4 {[%clk 0:00:59.1]} 0-1

[Event "Late-Titled-Tuesday-Blitz-April-30-2024"]
[Site "Chess.com"]
[Date "2024.04.30"]
[Round "7"]
[White "Sjakkerntobi"]
[Black "Jarming"]
[Result "1-0"]
[WhiteElo "2525"]
[BlackElo "2666"]
[TimeControl "180+1"]
[EndTime "15:17:30 PDT"]
[Termination "Sjakkerntobi won by resignation"]

1. e4 {[%clk 0:03:00.9]} 1... c6 {[%clk 0:02:57.9]} 2. Nc3 {[%clk 0:03:00.8]}
2... d5 {[%clk 0:02:57.3]} 3. Nf3 {[%clk 0:03:01.2]} 3... Bg4 {[%clk 0:02:56.7]}
4. h3 {[%clk 0:03:00.6]} 4... Bxf3 {[%clk 0:02:55.8]} 5. Qxf3 {[%clk 0:03:01.5]}
5... e6 {[%clk 0:02:55.8]} 6. d3 {[%clk 0:03:01.3]} 6... Nd7 {[%clk 0:02:54.3]}
7. g4 {[%clk 0:03:00.1]} 7... g6 {[%clk 0:02:52.4]} 8. Bd2 {[%clk 0:02:59.1]}
8... Bg7 {[%clk 0:02:52]} 9. O-O-O {[%clk 0:02:59.1]} 9... Ne7 {[%clk
0:02:49.6]} 10. Qg3 {[%clk 0:02:58.7]} 10... b5 {[%clk 0:02:48.3]} 11. f4 {[%clk
0:02:57.3]} 11... b4 {[%clk 0:02:48]} 12. Ne2 {[%clk 0:02:57.6]} 12... Rb8
{[%clk 0:02:43.7]} 13. h4 {[%clk 0:02:54.7]} 13... Qa5 {[%clk 0:02:32.9]} 14.
Kb1 {[%clk 0:02:54.8]} 14... Rb6 {[%clk 0:02:33.5]} 15. Bh3 {[%clk 0:02:49.7]}
15... Nc5 {[%clk 0:02:25.9]} 16. e5 {[%clk 0:02:45.4]} 16... Na4 {[%clk
0:02:17]} 17. d4 {[%clk 0:02:30.1]} 17... h5 {[%clk 0:02:12.2]} 18. gxh5 {[%clk
0:02:25.1]} 18... Rxh5 {[%clk 0:02:11]} 19. Bg4 {[%clk 0:02:25.2]} 19... Nf5
{[%clk 0:02:09]} 20. Qe1 {[%clk 0:02:11]} 20... Rh8 {[%clk 0:02:03]} 21. h5
{[%clk 0:02:11.1]} 21... gxh5 {[%clk 0:02:02.3]} 22. Bxf5 {[%clk 0:02:10.8]}
22... exf5 {[%clk 0:02:00.9]} 23. Ka1 {[%clk 0:01:58.6]} 23... Bf8 {[%clk
0:01:58.5]} 24. Nc1 {[%clk 0:01:57.8]} 24... Qb5 {[%clk 0:01:24.8]} 25. e6
{[%clk 0:01:48.5]} 25... Nc3 {[%clk 0:01:12.9]} 26. exf7+ {[%clk 0:01:32.2]}
26... Kxf7 {[%clk 0:01:13.8]} 27. Bxc3 {[%clk 0:01:32.3]} 27... bxc3 {[%clk
0:01:12.7]} 28. Qxc3 {[%clk 0:01:33.2]} 28... Bb4 {[%clk 0:01:07.1]} 29. Qf3
{[%clk 0:01:20.4]} 29... Be7 {[%clk 0:01:00.3]} 30. Nd3 {[%clk 0:01:13.8]} 30...
h4 {[%clk 0:00:55.6]} 31. Qf2 {[%clk 0:01:08.9]} 31... Bf6 {[%clk 0:00:50.6]}
32. Rhg1 {[%clk 0:01:01]} 32... c5 {[%clk 0:00:45.5]} 33. Qg2 {[%clk 0:00:55.3]}
33... Bxd4 {[%clk 0:00:34.9]} 34. Qxd5+ {[%clk 0:00:54.5]} 34... Kf8 {[%clk
0:00:20.5]} 35. Qxf5+ {[%clk 0:00:46.4]} 35... Ke7 {[%clk 0:00:20.9]} 36. Rge1+
{[%clk 0:00:35.2]} 36... Kd8 {[%clk 0:00:21]} 37. c3 {[%clk 0:00:26.4]} 37... c4
{[%clk 0:00:21.5]} 38. Qxb5 {[%clk 0:00:22.7]} 38... Rxb5 {[%clk 0:00:22.4]} 39.
Ne5 {[%clk 0:00:21.9]} 39... h3 {[%clk 0:00:22.4]} 40. Nf7+ {[%clk 0:00:22.1]}
40... Kc8 {[%clk 0:00:21.4]} 41. cxd4 {[%clk 0:00:19.4]} 41... Rhh5 {[%clk
0:00:14.7]} 42. Nd6+ {[%clk 0:00:19.4]} 1-0